Cogmind - Beta 16 @@@ ROGUE MODE // 2026.02.05 @ 20:19:41 Player: luckinvolved Result: Self-destructed Performance ------------- Evolutions (1) 500 Regions Visited (3) 600 Robots Destroyed (50) 250 Value Destroyed (815) 815 Prototype IDs (1) 20 Alien Tech Used (0) 0 Bonus (0) 0 TOTAL SCORE: 2185 Bonus ------- None Cogmind --------- Core Integrity 311/400 Matter 300/300 Energy 99/100 System Corruption 1% Temperature Cool (0) Movement Core (50) Location -9/Materials Parts ------- > --- POWER (1) -------- (None) > --- PROPULSION (3) --- (None) > --- UTILITY (3) ------ (None) > --- WEAPON (2) ------- (None) > --- INVENTORY (5) ---- Improved Ion Engine Light Treads Aluminum Leg Experimental Sensor Array Light Armor Plating Peak State ------------ > --- POWER ------------ Ion Engine > --- PROPULSION ------- Light Treads Light Treads > --- UTILITY ---------- High-capacity Storage Unit Experimental Sensor Array > --- WEAPON ----------- Medium Laser Light Assault Rifle > --- INVENTORY -------- Ion Engine Ion Engine Wheel Compact Wheel Medium Storage Unit Large Storage Unit EM Pulse Gun Small Laser Light Assault Rifle Grenade Launcher Mining Laser [Rating: 16] Favorites ----------- Power Ion Engine Engine Ion Engine Propulsion Light Treads Treads Light Treads Leg Aluminum Leg Wheel Wheel Flight Unit Flight Unit Utility Large Storage Unit Device Seismic Detector Storage Large Storage Unit Weapon Medium Laser Energy Gun Medium Laser Ballistic Gun Light Assault Rifle Launcher Grenade Launcher Special Weapon Mining Laser Build | -11 -10 -10 -9 ------- Run | Yrd Mat Min Mat Slots Evolved 2 | . . . 2 Power . | . . . . Propulsion 1 | . . . 1 Utility 1 | . . . 1 Weapon . | . . . . Parts Attached 21 | 4 6 10 1 Power 2 | . . 2 . Engine 2 | . . 2 . Core . | . . . . Reactor . | . . . . Propulsion 8 | 2 . 5 1 Treads 2 | 2 . . . Leg 2 | . . 2 . Wheel 3 | . . 2 1 Hover . | . . . . Flight 1 | . . 1 . Utility 5 | 1 3 1 . Device 2 | 1 . 1 . Storage 3 | . 3 . . Processor . | . . . . Hackware . | . . . . Protection . | . . . . Artifact . | . . . . Weapon 6 | 1 3 2 . Energy Gun 2 | 1 1 . . Energy Cannon . | . . . . Ballistic Gun 2 | . 1 1 . Ballistic Cannon . | . . . . Launcher 1 | . 1 . . Special Weapon 1 | . . 1 . Impact Weapon . | . . . . Slashing Weapon . | . . . . Piercing Weapon . | . . . . Special Melee Weapon . | . . . . Unidentified Prototypes 1 | . . 1 . Parts Lost 9 | . 1 4 4 Power 2 | . . 2 . Propulsion 3 | . . 2 1 Utility 1 | . 1 . . Weapon 3 | . . . 3 Highest Loss Streak 2 | . 1 2 2 To Critical Strikes . | . . . . Average Backups 9 | 6 7 10 11 Power 1 | 1 1 1 1 Propulsion 2 | 4 2 2 3 Utility 1 | . . 1 2 Weapon 4 | 1 4 5 3 Tool/Special . | . . . . Unused Backups 12 | . 4 . 8 Power 2 | . . . 2 Propulsion 4 | . 2 . 2 Utility 5 | . 2 . 3 Weapon 1 | . . . 1 Tool/Special . | . . . . Average Slot Usage (%) 97 | . 98 99 79 Engine 13 | . 14 13 11 Treads 21 | . 28 20 . Wheel 3 | . . 2 24 Flight 1 | . . 3 . Device 4 | . 6 3 . Storage 22 | . 20 24 22 Energy Gun 12 | . 19 7 10 Ballistic Gun 10 | . 2 16 11 Launcher 3 | . 5 3 . Peak Build Rating 16 | 7 7 16 10 Average Rating 8 | 6 6 9 9 On Entrance 7 | 6 7 7 8 Avg Prop Armor Cover (%) 4 | . . 4 . Naked Turns 7 | . . . 7 Heaviest Build 69 | 14 68 69 69 Greatest Support 40 | 40 40 40 38 Greatest Overweight (x) 6 | . 1 6 3 Average Overweight (x) . | . . 1 2 Largest Inventory Capacity 20 | 8 20 20 20 Average Capacity 16 | 8 11 20 19 Most Carried 14 | 7 9 11 14 Average Carried 9 | 6 7 10 11 Final Capacity 20 | 8 20 20 5 Final Carried 11 | 7 9 11 5 Class Distribution -------------------- 100% | Mutant Dominant Class ---------------- Mutant | -10/Materials Mutant | -10/Mines Mutant | -9/Materials Resources | -11 -10 -10 -9 ----------- Run | Yrd Mat Min Mat Matter Collected 808 | 230 213 323 42 Remotely . | . . . . Salvage Created 1073 | 115 381 452 125 Parts 75 | 10 33 21 11 Haulers Intercepted 1 | . 1 . . Recyclers Shooed . | . . . . Parts Field Recycled . | . . . . Retrieved Matter . | . . . . Parts Self-Destructed . | . . . . Prevented . | . . . . Parts Restored . | . . . . Kills | -11 -10 -10 -9 ------- Run | Yrd Mat Min Mat Combat Hostiles Destroyed 34 | . 17 12 5 Guns 17 | . 4 8 5 AOE 17 | . 13 4 . Classes Destroyed 8 | 2 5 . 1 Worker 5 | . 5 . . Builder 3 | . 2 1 . Tunneler 4 | 4 . . . Hauler 1 | . 1 . . Recycler 3 | 1 . 2 . Swarmer 19 | . 9 6 4 Grunt 14 | . 8 6 . Sentry 1 | . . . 1 Best Kill Streak 12 | 4 12 6 4 Combat Bots Only 6 | . 6 3 4 Max Kills in Single Turn 3 | 1 3 2 1 Gunslinging . | . . . . Exploded 3 | . 3 1 . Melee . | . . . . Uniques/NPCs Destroyed . | . . . . Combat | -11 -10 -10 -9 -------- Run | Yrd Mat Min Mat Hostile Shots Fired 171 | . 53 82 36 Missed 43 | . 15 21 7 Hits 128 | . 38 61 29 Projectile 128 | . 38 61 29 Part Disruptions 1 | . . . 1 Damage Taken 1393 | . 363 636 394 Core 271 | . 71 111 89 Absorbed by Shields . | . . . . Core Remaining (%) 63 | 100 . 27 . Volleys Fired 126 | 14 47 46 19 Largest 2 | 2 2 2 2 Hottest 100 | 90 90 100 90 Shots Fired 228 | 28 76 90 34 Gun 202 | 28 58 82 34 Cannon . | . . . . Launcher 24 | . 18 6 . Special 2 | . . 2 . Kinetic 113 | . 18 68 27 Thermal 86 | 28 40 16 2 Explosive 24 | . 18 6 . Electromagnetic 5 | . . . 5 Robot Hit Streak 17 | 4 12 17 9 Robot Miss Streak 5 | 2 5 2 4 Penetration Max . | . . . . Secondary Targets 2 | . . 1 1 Max Gunslinging Chain 1 | . . 1 1 Shots Hit Robots 137 | 16 42 56 23 Core Hits 75 | 6 34 28 7 Critical Kills 1 | . . . 1 Critical Parts Destroyed . | . . . . Critical Strikes 6 | . 2 3 1 Burn 5 | . 2 3 . Destroy 1 | . . . 1 Melee Attacks . | . . . . Impact . | . . . . Slashing . | . . . . Piercing . | . . . . Sneak Attacks . | . . . . Combat Hostiles . | . . . . Follow-up Attacks . | . . . . Damage Inflicted 2616 | 206 1375 834 201 Guns 1249 | 206 358 484 201 Cannons . | . . . . Explosions 1367 | . 1017 350 . Melee . | . . . . Ramming . | . . . . Kinetic 581 | . 89 347 145 Thermal 625 | 206 269 137 13 Explosive 1367 | . 1017 350 . Electromagnetic 43 | . . . 43 Impact . | . . . . Slashing . | . . . . Piercing . | . . . . Highest Corruption 1 | . . . 1 Average Corruption 1 | . . . 1 Corruption Purged . | . . . . Corruption Blocked . | . . . . Overload Shots . | . . . . Overflow Damage 6 | . 5 1 . Projectiles . | . . . . Explosions 6 | . 5 1 . Melee . | . . . . Knockbacks . | . . . . Impact . | . . . . Kinetic . | . . . . Secondary . | . . . . Self-Inflicted Damage 46 | . 22 24 . Shots 3 | . 1 2 . Rammed . | . . . . Targets Rammed . | . . . . Kicked . | . . . . Crushed . | . . . . Highest Temperature 210 | 210 192 140 51 Average Temperature 61 | 86 68 39 23 Received Heat Transfer 336 | . 81 174 81 Siege Activations . | . . . . Martial Activations . | . . . . Shielding Activations . | . . . . Robots Disrupted . | . . . . Combat Hostiles . | . . . . Robots Corrupted . | . . . . Combat Hostiles . | . . . . Parts Fried . | . . . . Impact Corruptions . | . . . . Robots Melted 1 | . 1 . . Combat Hostiles . | . . . . Parts Melted 7 | . 5 2 . Heat Transferred 2125 | 545 914 629 37 Parts Sabotaged . | . . . . Parts Stolen . | . . . . Parts Stripped . | . . . . Power Chain Reactions . | . . . . Alert | -11 -10 -10 -9 ------- Run | Yrd Mat Min Mat Maximum Alert Level 1 | . 1 . . Low Security (%) 81 | 100 54 100 100 Level 1 18 | . 45 . . Level 2 . | . . . . Level 3 . | . . . . Level 4 . | . . . . Level 5 . | . . . . High Security . | . . . . Max Security . | . . . . Peak Influence 310 | 10 310 187 115 Initial 95 | . . 95 7 Average 86 | 2 140 51 57 Influence Increases 1071 | 25 554 327 165 Destroy 0b10 Robot/C 680 | . 340 240 100 Destroy 0b10 Robot/NC 80 | 25 40 15 . Destroy Leader 112 | . 62 30 20 Select Force Hacks 30 | . 30 . . Disable Machine 15 | . . 15 . Destroy Structure 94 | . 67 27 . Lose Combat Pursuer 60 | . 15 . 45 Influence Decreases 1026 | 25 309 552 140 Entered New Map 163 | . . 150 13 Time Decay 803 | 25 299 392 87 Lost Part 60 | . 10 10 40 Squads Dispatched 3 | . 2 . 1 Investigation 1 | . 1 . . Extermination . | . . . . Reinforcement 2 | . 1 . 1 Assault . | . . . . Garrison . | . . . . Intercept . | . . . . Searches Triggered . | . . . . Construction Impeded . | . . . . Haulers Reinforced . | . . . . Active Scanning Responses . | . . . . Cargo Convoy Interrupts . | . . . . Stealth | -11 -10 -10 -9 --------- Run | Yrd Mat Min Mat Distress Signals 2 | . 2 . . Communications Jammed . | . . . . Distress Signals . | . . . . Times Spotted 48 | . 26 13 9 Peak Tracking Total 5 | . 5 3 4 Tactical Retreats 2 | . 1 . 1 Traps | -11 -10 -10 -9 ------- Run | Yrd Mat Min Mat Traps Triggered 1 | . . . 1 Indirectly . | . . . . Trap Hack Attempts . | . . . . Triggered . | . . . . Disarmed . | . . . . Reprogrammed . | . . . . Reused . | . . . . Traps Extracted . | . . . . Installed . | . . . . Triggered . | . . . . Machines | -11 -10 -10 -9 ---------- Run | Yrd Mat Min Mat Machines Disabled 1 | . . 1 . Max in Single Turn 1 | . . 1 . Machines Repaired . | . . . . Machines Dismantled . | . . . . Machines Sabotaged . | . . . . Overloaded Fab Kills . | . . . . Hacking | -11 -10 -10 -9 --------- Run | Yrd Mat Min Mat Machines Accessed 1 | . 1 . . Terminals . | . . . . Fabricators . | . . . . Repair Stations . | . . . . Recycling Units 1 | . 1 . . Scanalyzers . | . . . . Garrison Access . | . . . . Total Hacks 2 | . 2 . . Successful 2 | . 2 . . Failed . | . . . . Catastrophic . | . . . . Database Lockouts . | . . . . Manual 1 | . 1 . . Terminals . | . . . . Fabricators . | . . . . Repair Stations . | . . . . Recycling Units 2 | . 2 . . Scanalyzers . | . . . . Garrison Access . | . . . . Terminal Hacks . | . . . . Fabricator Hacks . | . . . . Repair Station Hacks . | . . . . Recycling Unit Hacks 1 | . 1 . . Report Inventory 1 | . 1 . . Scanalyzer . | . . . . Garrison Access Hacks . | . . . . Unauthorized Hacks 1 | . 1 . . Terminals . | . . . . Fabricators . | . . . . Repair Stations . | . . . . Recycling Units 1 | . 1 . . Tunnel 1 | . 1 . . Scanalyzers . | . . . . Garrison Access . | . . . . Data Cores Recovered . | . . . . Used . | . . . . Hacking Detections . | . . . . Full Trace Events . | . . . . Feedback Events . | . . . . Feedback Blocked . | . . . . Robot Schematics Acquired . | . . . . Robots Built . | . . . . Authchips . | . . . . Time . | . . . . Total Robot Build Rating . | . . . . Part Schematics Acquired . | . . . . Parts Built . | . . . . Authchips . | . . . . Time . | . . . . Total Part Build Rating . | . . . . Part Studies Acquired . | . . . . Parts Repaired . | . . . . Time . | . . . . Parts Recycled . | . . . . Recycled Matter . | . . . . Retrieved Matter . | . . . . Retrieved Components . | . . . . Parts Scanalyzed . | . . . . Part Schematics Acquired . | . . . . Parts Damaged . | . . . . Bothacking | -11 -10 -10 -9 ------------ Run | Yrd Mat Min Mat Used RIF Installer . | . . . . Robots Hacked . | . . . . Non-combat . | . . . . Combat . | . . . . Robot Hacks Applied . | . . . . Relay Couplers Released . | . . . . Fabnet Peak Effective % . | . . . . Robots Rewired . | . . . . Allies Hacked . | . . . . Hacks Repelled . | . . . . Allies | -11 -10 -10 -9 -------- Run | Yrd Mat Min Mat Total Allies . | . . . . Largest Group . | . . . . Highest-Rated Group . | . . . . Highest-Rated Ally . | . . . . Total Orders . | . . . . Ally Attacks . | . . . . Total Damage . | . . . . Kills . | . . . . Allies Corrupted . | . . . . Allies Melted . | . . . . Intel | -11 -10 -10 -9 ------- Run | Yrd Mat Min Mat Active Infowar (turns) 768 | 7 483 278 . Sensors 278 | . . 278 . Seismic 490 | 7 483 . . Robot Analysis Total . | . . . . Derelict Logs Recovered 1 | . . 1 . Drone Launches . | . . . . Drone Recoveries . | . . . . Exploration | -11 -10 -10 -9 ------------- Run | Yrd Mat Min Mat Turns Passed 2567 | 91 1032 1222 222 Spaces Moved 1135 | 24 558 412 141 Core 15 | . . . 15 Treads 939 | 24 558 357 . Legs 8 | . . 8 . Wheels 173 | . . 47 126 Hover . | . . . . Flight . | . . . . Fastest Speed 50 | 160 160 120 50 Average Speed 191 | 160 161 260 114 Slowest Speed 540 | 160 240 540 130 Overloaded Moves . | . . . . Propulsion Burnouts . | . . . . Robots Hopped . | . . . . Potential Cave-ins . | . . . . Cave-ins Triggered . | . . . . Exploration Rate (%) 49 | 3 93 81 19 Regions Visited 3 Branch Regions 1 Pre-discovered Areas 1 | . 1 . . Known Exits Taken . | . . . . Unknown Exits Taken 3 | 1 1 1 . Scrap Searched 1 | . . 1 . Spaces Dug . | . . . . Terrain Destroyed 100 | . 72 28 . Melee . | . . . . Projectile . | . . . . AOE 100 | . 72 28 . Terrain Rammed . | . . . . Walls Destroyed . | . . . . Machines Disabled . | . . . . Actions | -11 -10 -10 -9 --------- Run | Yrd Mat Min Mat Total 1313 | 47 617 476 173 Wait 11 | 5 . 1 5 Move 1132 | 23 557 411 141 Hop . | . . . . Pick Up 12 | 1 3 3 5 Fast Attach 5 | 1 1 2 1 Attach 4 | . . 2 2 Detach . | . . . . Swap 20 | 3 6 11 . Drop 3 | . 3 . . Fire 126 | 14 47 46 19 Melee . | . . . . Ram . | . . . . Kick . | . . . . Crush . | . . . . Escape Stasis . | . . . . Rewire . | . . . . Trap . | . . . . Miscellaneous . | . . . . Route ------- -11/Scrapyard -10/Materials (discovered 4 exits: [*Mat x2] / [*Min] / [*Sub]) -10/Mines (discovered 2 exits: [*Mat x2]) -9/Materials (discovered 1 exit: [*Mat]) History --------- Turn | Location | Event 31 | -11/Scrapyard | Discovered new exit (range 3) 92 | -11/Scrapyard | Entered Materials 262 | -10/Materials | Discovered new exit (range 5) 315 | -10/Materials | Build established: Mutant 602 | -10/Materials | Discovered new exit (range 14) 791 | -10/Materials | Discovered new exit (range 13) 890 | -10/Materials | Discovered new exit (range 9) 1124 | -10/Materials | Entered Mines 1181 | -10/Mines | Discovered new exit (range 15) 1527 | -10/Mines | Learned Materials stockpile data 1548 | -10/Mines | Found a damaged Exp. Sensor Array with a note attached 1553 | -10/Mines | Found Prototype Device 1578 | -10/Mines | Identified Exp. Sensor Array 1853 | -10/Mines | Discovered new exit (range 6) 2098 | -10/Mines | Excavation squad dispatched 2098 | -10/Mines | A large section of the Mines collapsed 2188 | -10/Mines | Core integrity fell below 50% 2346 | -10/Mines | Entered Materials 2346 | -9/Materials | Evolved 2 slots: Propulsion x1, Utility x1 2561 | -9/Materials | Released all parts (6) 2566 | -9/Materials | Discovered new exit (range 10) 2568 | -9/Materials | Self-destructed Last Messages --------------- 02470_ Neutrino Reactor explodes. 02470_ Terminal disabled. 02476_ Acquired 24 matter. 02479_ Acquired Corrupted Imp. Ion Engine. 02481_ Acquired Corrupted Lgt. Treads. 02484_ Acquired Lgt. Armor Plating. 02500_ Triggered EMP Trap. 02500_ A bubble of electromagnetic force engulfs the area. 02500_ Door malfunctions. 02511_ K-01 Serf collects debris. 02521_ Acquired Hrd. Light Armor Plating. 02536_ Acquired Targeting Computer. 02560_ EM Pulse Gun destroyed. 02561_ Released Med. Laser. 02561_ Released Arm. Wheel. 02561_ Released Ion Engine. 02561_ Released Lrg. Storage Unit. 02561_ Released Hcp. Storage Unit. 02561_ Released Wheel. 02566_ EXIT=FOUND Map ----- +----------------------------------------------------+ | ?????????????????????????????????????????????????? | | ?????????????????????????????????????????????????? | | ?????????????????????????????????????????????????? | | ???????????????!?????????????????????????????????? | | ?????????????????????????????????????????????????? | | ?????????????????????????????????????????????????? | | ?????????????????????????????????????????????????? | | ?????????????????????????????????????????????????? | | ?????????????????????????????????????????????????? | | ?????????????????????????????????????????????????? | | ?????????????????????????????????????????????????? | | ?????????????????????????????????????????????????? | | ?????????????????????????????????????????????????? | | ?????????????????????????????????????????????????# | | ?????????????????????????????????????????????????# | | ?????????????????????????????????????????????????# | | ?????????????????????##########??????????????? + | | ?????????????????????# #???????????????? # | | ?????????????????????# #??????????????????# | | ?????????????????????# #??????????????????# | | ?????????????????????# #??????????????????# | | ?????????????????????# #??????????????????? | | ?????????????????????# k #??????????????????? | | ?????????????????????# k #??????????????????? | | ?????????????????????# #??????????????????? | | ?????????????????????# @ #??????????????????? | | ?????????????????????#####+####??????????????????? | | ???????????????????????# ##################### | | ??????????????????###### *=[!!= | | ???????????????+ ]!*=! | | ????????????????######## [|=! | | ???????????????????????# # ########## ## | | ???????????????????????## ## #????????# #? | | ????????????????????????# ##]]!!!!#????????# #? | | ????????????????????????# ##]]!!!!#????????# ## | | ????????????????????????+ #########????????# | | ????????????????????????# #????????????????# | | ????????????????????????# < #????????????#######+# | | ????????????????????????# #????????????# | | ????????????????????????####?????????????# | | ?????????????????????????????????????????# " """ | | ?????????????????????????????????????????# """""" | | ?????????????????????????????????????????# """ " | | ?????????????????????????????????????????# | | ?????????????????????????????????????????######### | | | | | | | | | | | +----------------------------------------------------+ Best States ------------- Heat Dissipation 28 Energy Generation 10 Energy Capacity 250 Matter Stores 300 Matter Capacity 300 Sight Range 16 Robot Scan Range 20 Terrain Scan Density 10 Evasion (%) 40 Recoil Reduction 2 Item Schematics ----------------- None Robot Schematics ------------------ None Fabricated ------------ Nothing Repaired ---------- Nothing Studied --------- None Alien Tech Used ----------------- None Achievements -------------- None Challenges ------------ None Game ------ Seed LegMachineRouter Manual? 0 Play Time 00:09:35 Cumulative 187.6 hours Start 2026.02.05 @ 14:26:50 End 2026.02.05 @ 20:19:41 Sessions 3 Manual Loads 0 Difficulty Rogue Special Mode None Game No. 214 Rogue 209 Adventurer 5 Explorer 0 Win Type - Total 6 Types 5/0/0/1/0/0/0/0/0/0 Lore% 56 Gallery% 66 Achievement% 55 Wizard Run 0 Options --------- Layout 0 ASCII 0 Keyboard 1 Movement Vi Keybinds 0 Fullscreen 1 Font 24/Smallcaps Map View 76x50 Zoom Use 1% Tactical HUD 1 Map Filters NONE Filters NONE Steam 1 RUN: 5e5746a6-3c25-4ff2-a729-cbc8916f446f